[Event "Early-Titled-Tuesday-Blitz-September-12-2023"]
[Site "Chess.com"]
[Date "2023.09.12"]
[Round "10"]
[White "Goryachkina"]
[Black "sjoerd893"]
[Result "1/2-1/2"]
[WhiteElo "2646"]
[BlackElo "2482"]
[TimeControl "180+1"]
[EndTime "9:56:22 PDT"]
[Termination "Game drawn by repetition"]

1. e4 {[%clk 0:02:59.7]} 1... c5 {[%clk 0:02:53.2]} 2. Nf3 {[%clk 0:02:59.4]}
2... Nc6 {[%clk 0:02:53.3]} 3. Bb5 {[%clk 0:02:59.1]} 3... g6 {[%clk 0:02:53.2]}
4. O-O {[%clk 0:02:58.8]} 4... Bg7 {[%clk 0:02:52.7]} 5. Re1 {[%clk 0:02:58.6]}
5... e5 {[%clk 0:02:47.5]} 6. b4 {[%clk 0:02:54.9]} 6... Nxb4 {[%clk 0:02:27.6]}
7. Bb2 {[%clk 0:02:51.2]} 7... a6 {[%clk 0:02:19.4]} 8. a3 {[%clk 0:02:47.6]}
8... axb5 {[%clk 0:01:40.1]} 9. axb4 {[%clk 0:02:47.3]} 9... Rxa1 {[%clk
0:01:39.1]} 10. Bxa1 {[%clk 0:02:48.2]} 10... d6 {[%clk 0:01:35.2]} 11. bxc5
{[%clk 0:02:47.4]} 11... dxc5 {[%clk 0:01:36.1]} 12. Bxe5 {[%clk 0:02:35.3]}
12... Bxe5 {[%clk 0:01:31.1]} 13. Nxe5 {[%clk 0:02:35.3]} 13... Ne7 {[%clk
0:01:27.6]} 14. Nc3 {[%clk 0:02:32.7]} 14... Bd7 {[%clk 0:01:21.8]} 15. Nd5
{[%clk 0:02:30.1]} 15... Nxd5 {[%clk 0:01:15.2]} 16. exd5 {[%clk 0:02:30.1]}
16... O-O {[%clk 0:01:15.6]} 17. d4 {[%clk 0:02:15.3]} 17... b6 {[%clk
0:01:07.7]} 18. h3 {[%clk 0:02:07.8]} 18... Qc7 {[%clk 0:00:55.4]} 19. Re3
{[%clk 0:02:03.5]} 19... Qd6 {[%clk 0:00:44.3]} 20. dxc5 {[%clk 0:01:45.6]}
20... bxc5 {[%clk 0:00:41.7]} 21. Qf3 {[%clk 0:01:45.3]} 21... Bf5 {[%clk
0:00:33.7]} 22. c3 {[%clk 0:01:45]} 22... b4 {[%clk 0:00:26.8]} 23. cxb4 {[%clk
0:01:44.7]} 23... cxb4 {[%clk 0:00:27.7]} 24. Nc6 {[%clk 0:01:44.6]} 24... Kg7
{[%clk 0:00:19.4]} 25. Qd1 {[%clk 0:01:19.6]} 25... Ra8 {[%clk 0:00:15.4]} 26.
Qd4+ {[%clk 0:01:18.4]} 26... Qf6 {[%clk 0:00:15.4]} 27. Qxf6+ {[%clk
0:01:16.5]} 27... Kxf6 {[%clk 0:00:16.3]} 28. Nxb4 {[%clk 0:01:16.8]} 28... Ra1+
{[%clk 0:00:14.3]} 29. Kh2 {[%clk 0:01:16.1]} 29... Rb1 {[%clk 0:00:13.5]} 30.
Nc6 {[%clk 0:01:04.9]} 30... Rd1 {[%clk 0:00:12.2]} 31. g4 {[%clk 0:00:51.1]}
31... Bb1 {[%clk 0:00:04.3]} 32. Nb4 {[%clk 0:00:14.5]} 32... Rd4 {[%clk
0:00:03.1]} 33. Rb3 {[%clk 0:00:14.2]} 33... Be4 {[%clk 0:00:03.3]} 34. Kg3
{[%clk 0:00:10.4]} 34... Bxd5 {[%clk 0:00:03.5]} 35. Nxd5+ {[%clk 0:00:09.9]}
35... Rxd5 {[%clk 0:00:04.4]} 36. Rf3+ {[%clk 0:00:10]} 36... Kg7 {[%clk
0:00:04.9]} 37. Re3 {[%clk 0:00:10.4]} 37... h5 {[%clk 0:00:05.3]} 38. f3 {[%clk
0:00:09.8]} 38... hxg4 {[%clk 0:00:05.1]} 39. hxg4 {[%clk 0:00:10]} 39... Rd4
{[%clk 0:00:05.3]} 40. f4 {[%clk 0:00:09.9]} 40... f5 {[%clk 0:00:05.5]} 41. g5
{[%clk 0:00:08.5]} 41... Rd1 {[%clk 0:00:04.6]} 42. Kf3 {[%clk 0:00:08.5]} 42...
Rf1+ {[%clk 0:00:04.2]} 43. Kg3 {[%clk 0:00:09]} 43... Rg1+ {[%clk 0:00:04.5]}
44. Kf3 {[%clk 0:00:09.4]} 44... Rf1+ {[%clk 0:00:04.7]} 45. Kg3 {[%clk
0:00:09.9]} 45... Rg1+ {[%clk 0:00:05.3]} 46. Kf3 {[%clk 0:00:10.4]} 46... Rf1+
{[%clk 0:00:05.6]} 1/2-1/2

[Event "Early-Titled-Tuesday-Blitz-September-12-2023"]
[Site "Chess.com"]
[Date "2023.09.12"]
[Round "10"]
[White "chessdjw"]
[Black "Predator0608"]
[Result "1-0"]
[WhiteElo "2748"]
[BlackElo "2514"]
[TimeControl "180+1"]
[EndTime "9:56:24 PDT"]
[Termination "chessdjw won by resignation"]

1. e4 {[%clk 0:03:00.9]} 1... c5 {[%clk 0:03:00.1]} 2. Nf3 {[%clk 0:03:01.2]}
2... d6 {[%clk 0:03:00.5]} 3. d4 {[%clk 0:02:59.8]} 3... cxd4 {[%clk 0:03:01.4]}
4. Qxd4 {[%clk 0:03:00.4]} 4... Nc6 {[%clk 0:03:00.6]} 5. Qe3 {[%clk 0:02:57.9]}
5... Nf6 {[%clk 0:03:00.4]} 6. h3 {[%clk 0:02:54.9]} 6... g6 {[%clk 0:03:00.1]}
7. Bc4 {[%clk 0:02:53.2]} 7... Bg7 {[%clk 0:02:59.3]} 8. O-O {[%clk 0:02:53.4]}
8... O-O {[%clk 0:02:54.5]} 9. Rd1 {[%clk 0:02:53.4]} 9... Qc7 {[%clk
0:02:49.3]} 10. a4 {[%clk 0:02:51.3]} 10... Nb4 {[%clk 0:02:46.3]} 11. Qc3
{[%clk 0:02:33.5]} 11... Qc5 {[%clk 0:02:15.4]} 12. Be3 {[%clk 0:00:42.7]} 12...
Nxe4 {[%clk 0:02:10.1]} 13. Qb3 {[%clk 0:00:28.4]} 13... Qa5 {[%clk 0:02:03.4]}
14. c3 {[%clk 0:00:25.7]} 14... Nc6 {[%clk 0:02:00.3]} 15. Nbd2 {[%clk
0:00:23.6]} 15... Nc5 {[%clk 0:01:53.8]} 16. Qa2 {[%clk 0:00:20.8]} 16... Qc7
{[%clk 0:01:42.5]} 17. Bxc5 {[%clk 0:00:20.3]} 17... dxc5 {[%clk 0:01:42.3]} 18.
Ne4 {[%clk 0:00:13.7]} 18... b6 {[%clk 0:01:36.6]} 19. Bxf7+ {[%clk 0:00:12.2]}
19... Rxf7 {[%clk 0:01:34.4]} 20. Neg5 {[%clk 0:00:12.5]} 20... e6 {[%clk
0:01:28.7]} 21. Nxf7 {[%clk 0:00:12.8]} 21... Qxf7 {[%clk 0:01:27.8]} 22. Rd6
{[%clk 0:00:13.2]} 22... Qc7 {[%clk 0:01:21.6]} 23. Rad1 {[%clk 0:00:12.6]}
23... Bf8 {[%clk 0:01:11.2]} 24. Rxe6 {[%clk 0:00:10.2]} 24... Bxe6 {[%clk
0:01:10.7]} 25. Qxe6+ {[%clk 0:00:11.1]} 25... Kh8 {[%clk 0:01:11]} 26. Rd7
{[%clk 0:00:11.2]} 26... Qf4 {[%clk 0:01:08.4]} 27. Qxc6 {[%clk 0:00:10.9]}
27... Re8 {[%clk 0:01:07.9]} 28. Rxh7+ {[%clk 0:00:10.4]} 28... Kxh7 {[%clk
0:01:07.5]} 29. Qxe8 {[%clk 0:00:11.3]} 29... Qc1+ {[%clk 0:01:07.6]} 30. Qe1
{[%clk 0:00:09.2]} 30... Qf4 {[%clk 0:01:08.5]} 31. Qd1 {[%clk 0:00:08]} 31...
Bg7 {[%clk 0:01:01.5]} 32. g3 {[%clk 0:00:07.9]} 32... Qf5 {[%clk 0:01:01.2]}
33. h4 {[%clk 0:00:07.7]} 33... Bf6 {[%clk 0:00:59.4]} 34. Kg2 {[%clk
0:00:08.2]} 34... Qe4 {[%clk 0:00:58.4]} 35. Qe1 {[%clk 0:00:05.2]} 35... Qc6
{[%clk 0:00:55.5]} 36. Qd1 {[%clk 0:00:05]} 36... a6 {[%clk 0:00:53.8]} 37. Kf1
{[%clk 0:00:05.1]} 37... b5 {[%clk 0:00:51.7]} 38. axb5 {[%clk 0:00:06]} 38...
axb5 {[%clk 0:00:52.2]} 39. Qe2 {[%clk 0:00:06]} 39... Kg7 {[%clk 0:00:48.5]}
40. Kg2 {[%clk 0:00:06.3]} 40... Qd5 {[%clk 0:00:48.3]} 41. Qxb5 {[%clk
0:00:05.6]} 41... Be7 {[%clk 0:00:45.5]} 42. b4 {[%clk 0:00:05.5]} 42... Kh6
{[%clk 0:00:41.4]} 43. c4 {[%clk 0:00:05.7]} 43... Qf5 {[%clk 0:00:39.2]} 44.
bxc5 {[%clk 0:00:05.6]} 44... Bxc5 {[%clk 0:00:39.6]} 45. Qc6 {[%clk 0:00:05.8]}
45... Ba7 {[%clk 0:00:36.8]} 46. Qd5 {[%clk 0:00:05.8]} 46... Qc2 {[%clk
0:00:36.2]} 47. Qg5+ {[%clk 0:00:06]} 47... Kh7 {[%clk 0:00:31.7]} 48. Qe7+
{[%clk 0:00:06.9]} 48... Kh6 {[%clk 0:00:32.6]} 49. Qxa7 {[%clk 0:00:07.3]}
49... Qxc4 {[%clk 0:00:33]} 50. Qe3+ {[%clk 0:00:07.8]} 50... Kh7 {[%clk
0:00:32.3]} 51. Ng5+ {[%clk 0:00:08.3]} 51... Kg7 {[%clk 0:00:32.3]} 52. Qe7+
{[%clk 0:00:08.4]} 52... Kg8 {[%clk 0:00:32.8]} 53. Qh7+ {[%clk 0:00:07.9]}
53... Kf8 {[%clk 0:00:32.8]} 54. Qxg6 {[%clk 0:00:08.6]} 54... Qd5+ {[%clk
0:00:32.2]} 55. Qe4 {[%clk 0:00:09.1]} 55... Qd6 {[%clk 0:00:31.9]} 56. Qf4+
{[%clk 0:00:09.3]} 56... Qxf4 {[%clk 0:00:31.5]} 57. gxf4 {[%clk 0:00:10.2]}
57... Kg7 {[%clk 0:00:32.4]} 58. Kg3 {[%clk 0:00:10.9]} 58... Kg6 {[%clk
0:00:33.3]} 59. Kg4 {[%clk 0:00:11.8]} 1-0

[Event "Early-Titled-Tuesday-Blitz-September-12-2023"]
[Site "Chess.com"]
[Date "2023.09.12"]
[Round "10"]
[White "viktorskliarov"]
[Black "temus_galaktionov"]
[Result "0-1"]
[WhiteElo "2660"]
[BlackElo "2828"]
[TimeControl "180+1"]
[EndTime "9:56:26 PDT"]
[Termination "temus_galaktionov won by resignation"]

1. e4 {[%clk 0:03:00.9]} 1... c6 {[%clk 0:03:00.9]} 2. d4 {[%clk 0:03:00.5]}
2... g6 {[%clk 0:03:01.1]} 3. Nc3 {[%clk 0:02:59.6]} 3... d6 {[%clk 0:03:02]} 4.
Be3 {[%clk 0:02:59.3]} 4... Bg7 {[%clk 0:03:00.5]} 5. Qd2 {[%clk 0:02:59]} 5...
Nd7 {[%clk 0:03:01.1]} 6. O-O-O {[%clk 0:02:58.2]} 6... b5 {[%clk 0:03:01.2]} 7.
Kb1 {[%clk 0:02:54.5]} 7... Qa5 {[%clk 0:03:01.3]} 8. f3 {[%clk 0:02:53.6]} 8...
Nb6 {[%clk 0:03:01.6]} 9. b3 {[%clk 0:02:53.1]} 9... Qa3 {[%clk 0:02:54.9]} 10.
g4 {[%clk 0:02:41.5]} 10... a5 {[%clk 0:02:49.4]} 11. Ka1 {[%clk 0:02:13.5]}
11... Qb4 {[%clk 0:02:35]} 12. Nb1 {[%clk 0:02:02.1]} 12... Qxd2 {[%clk
0:02:22.7]} 13. Rxd2 {[%clk 0:02:01.7]} 13... b4 {[%clk 0:02:18.1]} 14. c4
{[%clk 0:01:41.7]} 14... Nf6 {[%clk 0:01:48.1]} 15. Ne2 {[%clk 0:01:26.1]} 15...
Nfd7 {[%clk 0:01:45.3]} 16. h4 {[%clk 0:01:19.9]} 16... h5 {[%clk 0:01:44.1]}
17. gxh5 {[%clk 0:01:17.7]} 17... Rxh5 {[%clk 0:01:40.7]} 18. Ng3 {[%clk
0:01:17.4]} 18... Rh8 {[%clk 0:01:20.6]} 19. h5 {[%clk 0:01:16.8]} 19... Nf8
{[%clk 0:01:17.5]} 20. h6 {[%clk 0:00:55.4]} 20... Bf6 {[%clk 0:01:17.4]} 21. e5
{[%clk 0:00:55.9]} 21... dxe5 {[%clk 0:01:16.7]} 22. Ne4 {[%clk 0:00:56.3]}
22... Nbd7 {[%clk 0:01:09.1]} 23. Nxf6+ {[%clk 0:00:56]} 23... exf6 {[%clk
0:01:09.4]} 24. f4 {[%clk 0:00:43.1]} 24... exf4 {[%clk 0:01:06.9]} 25. Bxf4
{[%clk 0:00:42.3]} 25... Ne6 {[%clk 0:01:07]} 26. Bd6 {[%clk 0:00:39.1]} 26...
Bb7 {[%clk 0:01:05.4]} 27. Bg2 {[%clk 0:00:29.9]} 27... O-O-O {[%clk 0:01:02.4]}
28. a3 {[%clk 0:00:28.7]} 28... c5 {[%clk 0:00:54.2]} 29. d5 {[%clk 0:00:23.3]}
29... Nd4 {[%clk 0:00:51.2]} 30. Kb2 {[%clk 0:00:19.4]} 30... Nf5 {[%clk
0:00:51.3]} 31. Bf4 {[%clk 0:00:16]} 31... g5 {[%clk 0:00:50.9]} 32. Bh3 {[%clk
0:00:14.1]} 32... Rxh6 {[%clk 0:00:46.8]} 33. Bxf5 {[%clk 0:00:12.5]} 33... Rxh1
{[%clk 0:00:46.7]} 34. Bd6 {[%clk 0:00:11.5]} 34... Re8 {[%clk 0:00:43.1]} 35.
Rf2 {[%clk 0:00:08.4]} 35... Rhe1 {[%clk 0:00:39.8]} 36. axb4 {[%clk 0:00:08.2]}
36... R8e2+ {[%clk 0:00:37.8]} 37. Rxe2 {[%clk 0:00:08.1]} 37... Rxe2+ {[%clk
0:00:38.7]} 38. Kc1 {[%clk 0:00:08.4]} 38... cxb4 {[%clk 0:00:38.6]} 39. Nd2
{[%clk 0:00:06.2]} 39... Kd8 {[%clk 0:00:32.3]} 40. Ne4 {[%clk 0:00:05.6]} 40...
Re3 {[%clk 0:00:32.5]} 41. Kb2 {[%clk 0:00:03.9]} 41... Rf3 {[%clk 0:00:32.5]}
42. Bg4 {[%clk 0:00:02]} 42... Rf1 {[%clk 0:00:31.9]} 43. Nc5 {[%clk 0:00:02.1]}
43... Nxc5 {[%clk 0:00:31.1]} 44. Bxc5 {[%clk 0:00:03]} 44... f5 {[%clk
0:00:31.5]} 45. Bh5 {[%clk 0:00:03.1]} 45... Ke8 {[%clk 0:00:28.2]} 46. Bb6
{[%clk 0:00:03.5]} 46... g4 {[%clk 0:00:26.7]} 47. Bxa5 {[%clk 0:00:03.8]} 47...
Rh1 {[%clk 0:00:25.3]} 48. Bxf7+ {[%clk 0:00:02.8]} 48... Kxf7 {[%clk
0:00:25.6]} 49. Bxb4 {[%clk 0:00:03.7]} 49... g3 {[%clk 0:00:25.4]} 50. Bc5
{[%clk 0:00:04.3]} 50... f4 {[%clk 0:00:25.6]} 0-1

[Event "Early-Titled-Tuesday-Blitz-September-12-2023"]
[Site "Chess.com"]
[Date "2023.09.12"]
[Round "10"]
[White "MusicCityMaster"]
[Black "whiteglovethief"]
[Result "0-1"]
[WhiteElo "2387"]
[BlackElo "2540"]
[TimeControl "180+1"]
[EndTime "9:56:26 PDT"]
[Termination "whiteglovethief won on time"]

1. e4 {[%clk 0:03:00.9]} 1... e6 {[%clk 0:02:58]} 2. d4 {[%clk 0:03:00.3]} 2...
d5 {[%clk 0:02:58.4]} 3. Nc3 {[%clk 0:02:59.2]} 3... Bb4 {[%clk 0:02:57.3]} 4.
e5 {[%clk 0:02:58.7]} 4... c5 {[%clk 0:02:56.8]} 5. a3 {[%clk 0:02:59.2]} 5...
Bxc3+ {[%clk 0:02:56.7]} 6. bxc3 {[%clk 0:03:00.1]} 6... Ne7 {[%clk 0:02:56.6]}
7. h4 {[%clk 0:02:59.6]} 7... Nbc6 {[%clk 0:02:55.5]} 8. h5 {[%clk 0:02:59.1]}
8... Qa5 {[%clk 0:02:55.4]} 9. Bd2 {[%clk 0:02:56.6]} 9... h6 {[%clk 0:02:55.9]}
10. Nf3 {[%clk 0:02:54]} 10... Bd7 {[%clk 0:02:55.4]} 11. Rh4 {[%clk 0:02:51.5]}
11... O-O-O {[%clk 0:02:54.4]} 12. a4 {[%clk 0:02:49]} 12... c4 {[%clk
0:02:52.8]} 13. g3 {[%clk 0:02:37.6]} 13... f6 {[%clk 0:02:52.7]} 14. Bg2 {[%clk
0:02:32.7]} 14... f5 {[%clk 0:02:40.4]} 15. Kf1 {[%clk 0:02:25.6]} 15... Rdg8
{[%clk 0:02:39.9]} 16. Qe1 {[%clk 0:02:10.2]} 16... g5 {[%clk 0:02:38.2]} 17.
hxg6 {[%clk 0:02:09.7]} 17... Nxg6 {[%clk 0:02:32.4]} 18. Rxh6 {[%clk
0:02:07.7]} 18... Rxh6 {[%clk 0:02:32.4]} 19. Bxh6 {[%clk 0:02:08.2]} 19... f4
{[%clk 0:02:30.5]} 20. g4 {[%clk 0:02:00]} 20... Nce7 {[%clk 0:02:26.5]} 21. Bg5
{[%clk 0:01:42.6]} 21... Qd8 {[%clk 0:02:12.8]} 22. Bf6 {[%clk 0:01:40.8]} 22...
Qf8 {[%clk 0:02:01.7]} 23. g5 {[%clk 0:01:23]} 23... Nf5 {[%clk 0:02:00.7]} 24.
a5 {[%clk 0:01:20.1]} 24... Qf7 {[%clk 0:01:54.2]} 25. a6 {[%clk 0:01:11.6]}
25... b6 {[%clk 0:01:53.5]} 26. Qc1 {[%clk 0:01:11.4]} 26... Ngh4 {[%clk
0:01:50]} 27. Nxh4 {[%clk 0:01:07.6]} 27... Nxh4 {[%clk 0:01:49.4]} 28. Qxf4
{[%clk 0:01:08.2]} 28... Rh8 {[%clk 0:01:44.1]} 29. Qh2 {[%clk 0:00:45.3]} 29...
Rh7 {[%clk 0:01:40.1]} 30. Re1 {[%clk 0:00:31.5]} 30... Qg6 {[%clk 0:01:39.7]}
31. Re2 {[%clk 0:00:24.6]} 31... Ba4 {[%clk 0:01:30.1]} 32. Qg3 {[%clk
0:00:21.9]} 32... Bxc2 {[%clk 0:01:28.1]} 33. Kg1 {[%clk 0:00:21.2]} 33... Nf5
{[%clk 0:01:11.8]} 34. Qg4 {[%clk 0:00:19.2]} 34... Bd3 {[%clk 0:01:10.3]} 35.
Re1 {[%clk 0:00:17.7]} 35... Rh4 {[%clk 0:01:09.7]} 36. Qf3 {[%clk 0:00:17.9]}
36... Be4 {[%clk 0:01:04.5]} 37. Qe2 {[%clk 0:00:17.4]} 37... Qh7 {[%clk
0:00:57.6]} 38. Bxe4 {[%clk 0:00:16.2]} 38... dxe4 {[%clk 0:00:51.7]} 39. Qxe4
{[%clk 0:00:16.8]} 39... Rxe4 {[%clk 0:00:49.9]} 40. Rxe4 {[%clk 0:00:16.3]}
40... Nh4 {[%clk 0:00:47]} 41. Re3 {[%clk 0:00:16.7]} 41... Qb1+ {[%clk
0:00:38.7]} 42. Kh2 {[%clk 0:00:16.9]} 42... Qf1 {[%clk 0:00:38.9]} 43. Kg3
{[%clk 0:00:15.3]} 43... Nf5+ {[%clk 0:00:38.3]} 44. Kf3 {[%clk 0:00:15.9]}
44... Nxe3 {[%clk 0:00:37.5]} 45. Kxe3 {[%clk 0:00:16.5]} 45... Qd3+ {[%clk
0:00:36.6]} 46. Kf4 {[%clk 0:00:17]} 46... Qxc3 {[%clk 0:00:35.7]} 47. g6 {[%clk
0:00:17.4]} 47... Qxd4+ {[%clk 0:00:36.1]} 48. Kg5 {[%clk 0:00:17.9]} 48... Qxf2
{[%clk 0:00:32.6]} 49. g7 {[%clk 0:00:17.5]} 49... Qg3+ {[%clk 0:00:33.1]} 50.
Kh6 {[%clk 0:00:17.2]} 50... c3 {[%clk 0:00:33.4]} 51. Bg5 {[%clk 0:00:17.2]}
51... Qh3+ {[%clk 0:00:31.7]} 52. Kg6 {[%clk 0:00:17.6]} 52... Qf5+ {[%clk
0:00:31.7]} 53. Kh6 {[%clk 0:00:18.2]} 53... Qf7 {[%clk 0:00:31.7]} 54. Kh7
{[%clk 0:00:18.4]} 54... b5 {[%clk 0:00:30.6]} 55. Bh6 {[%clk 0:00:18.5]} 55...
b4 {[%clk 0:00:30.2]} 56. Kh8 {[%clk 0:00:19]} 56... b3 {[%clk 0:00:29.8]} 57.
g8=Q+ {[%clk 0:00:18.8]} 57... Qxg8+ {[%clk 0:00:30]} 58. Kxg8 {[%clk
0:00:19.2]} 58... b2 {[%clk 0:00:30.1]} 59. Kf7 {[%clk 0:00:19.9]} 59... b1=Q
{[%clk 0:00:30.2]} 60. Kxe6 {[%clk 0:00:20.8]} 60... c2 {[%clk 0:00:30.1]} 0-1

[Event "Early-Titled-Tuesday-Blitz-September-12-2023"]
[Site "Chess.com"]
[Date "2023.09.12"]
[Round "10"]
[White "McCarthyStone"]
[Black "Mariia89"]
[Result "1-0"]
[WhiteElo "2453"]
[BlackElo "1998"]
[TimeControl "180+1"]
[EndTime "9:56:26 PDT"]
[Termination "McCarthyStone won on time"]

1. c4 {[%clk 0:03:00.3]} 1... c5 {[%clk 0:03:00.3]} 2. Nc3 {[%clk 0:03:01]} 2...
Nc6 {[%clk 0:03:01.1]} 3. g3 {[%clk 0:03:01.6]} 3... g6 {[%clk 0:03:01.5]} 4.
Bg2 {[%clk 0:03:02.4]} 4... Bg7 {[%clk 0:03:02.1]} 5. e4 {[%clk 0:03:03.1]} 5...
d6 {[%clk 0:02:58.8]} 6. Nge2 {[%clk 0:03:03.6]} 6... Nf6 {[%clk 0:02:58.8]} 7.
O-O {[%clk 0:03:03.5]} 7... O-O {[%clk 0:02:58.9]} 8. d4 {[%clk 0:03:03.9]} 8...
cxd4 {[%clk 0:02:58.4]} 9. Nxd4 {[%clk 0:03:04.7]} 9... Bd7 {[%clk 0:02:57.4]}
10. Nde2 {[%clk 0:03:02.6]} 10... a6 {[%clk 0:02:52.6]} 11. h3 {[%clk
0:03:02.2]} 11... Qa5 {[%clk 0:02:48.7]} 12. Be3 {[%clk 0:02:54.2]} 12... b5
{[%clk 0:02:46.7]} 13. cxb5 {[%clk 0:02:52.7]} 13... axb5 {[%clk 0:02:45.4]} 14.
g4 {[%clk 0:02:43.9]} 14... b4 {[%clk 0:02:10.2]} 15. Nd5 {[%clk 0:02:43.3]}
15... Nxd5 {[%clk 0:01:55.7]} 16. exd5 {[%clk 0:02:44]} 16... Ne5 {[%clk
0:01:54]} 17. Bd4 {[%clk 0:02:43.6]} 17... Bb5 {[%clk 0:01:43.6]} 18. Re1 {[%clk
0:02:42.1]} 18... Nd3 {[%clk 0:01:39.3]} 19. Bxg7 {[%clk 0:02:30.5]} 19... Kxg7
{[%clk 0:01:40.2]} 20. Rf1 {[%clk 0:02:26.7]} 20... Kg8 {[%clk 0:01:37.1]} 21.
Qd2 {[%clk 0:02:19.5]} 21... b3 {[%clk 0:01:30.1]} 22. Qxa5 {[%clk 0:01:54.4]}
22... Rxa5 {[%clk 0:01:29.9]} 23. Nc3 {[%clk 0:01:48.9]} 23... Nxb2 {[%clk
0:01:18.3]} 24. Nxb5 {[%clk 0:01:38.5]} 24... Rxb5 {[%clk 0:01:19.2]} 25. axb3
{[%clk 0:01:30.2]} 25... Rxb3 {[%clk 0:01:18.7]} 26. Ra7 {[%clk 0:01:28.5]}
26... Re8 {[%clk 0:01:10.5]} 27. Re1 {[%clk 0:01:22.5]} 27... Kf8 {[%clk
0:01:10.7]} 28. Bf1 {[%clk 0:01:08.5]} 28... Nd3 {[%clk 0:01:03]} 29. Rea1
{[%clk 0:00:49.9]} 29... Ne5 {[%clk 0:00:56.8]} 30. Rc7 {[%clk 0:00:47.8]} 30...
Nf3+ {[%clk 0:00:17.6]} 31. Kg2 {[%clk 0:00:45.7]} 31... Nd2 {[%clk 0:00:16.5]}
32. Be2 {[%clk 0:00:39.5]} 32... Nb1 {[%clk 0:00:12.6]} 33. Raa7 {[%clk
0:00:35.8]} 33... Nc3 {[%clk 0:00:12.5]} 34. Bc4 {[%clk 0:00:35]} 34... Rb2
{[%clk 0:00:10.5]} 35. Bd3 {[%clk 0:00:30.9]} 35... Rb3 {[%clk 0:00:08.7]} 36.
Bc2 {[%clk 0:00:29.1]} 36... Nxd5 {[%clk 0:00:07.9]} 37. Bxb3 {[%clk 0:00:28.4]}
37... Nxc7 {[%clk 0:00:08.4]} 38. Rxc7 {[%clk 0:00:29.1]} 38... Rb8 {[%clk
0:00:09.3]} 39. Bd5 {[%clk 0:00:28.4]} 39... Rb5 {[%clk 0:00:08.2]} 40. Bc4
{[%clk 0:00:27.2]} 40... Rb4 {[%clk 0:00:08.4]} 41. g5 {[%clk 0:00:23.8]} 41...
Rb2 {[%clk 0:00:06.9]} 42. h4 {[%clk 0:00:23.4]} 42... Rb1 {[%clk 0:00:07]} 43.
Bd3 {[%clk 0:00:22.1]} 43... Re1 {[%clk 0:00:05.7]} 44. Kf3 {[%clk 0:00:21.1]}
44... Kg7 {[%clk 0:00:05.5]} 45. Be2 {[%clk 0:00:19.5]} 45... e5 {[%clk
0:00:04.5]} 46. Bc4 {[%clk 0:00:19]} 1-0

[Event "Early-Titled-Tuesday-Blitz-September-12-2023"]
[Site "Chess.com"]
[Date "2023.09.12"]
[Round "10"]
[White "MokshAD1603"]
[Black "ChessQueen"]
[Result "1/2-1/2"]
[WhiteElo "2600"]
[BlackElo "2718"]
[TimeControl "180+1"]
[EndTime "9:56:28 PDT"]
[Termination "Game drawn - insufficient material"]

1. e4 {[%clk 0:02:49.7]} 1... c6 {[%clk 0:02:59.7]} 2. Nf3 {[%clk 0:02:45]} 2...
d5 {[%clk 0:03:00.6]} 3. Nc3 {[%clk 0:02:45.5]} 3... dxe4 {[%clk 0:03:00.9]} 4.
Nxe4 {[%clk 0:02:45.8]} 4... Nf6 {[%clk 0:03:01.5]} 5. Qe2 {[%clk 0:02:46.4]}
5... Nxe4 {[%clk 0:03:01.8]} 6. Qxe4 {[%clk 0:02:47.3]} 6... Nd7 {[%clk
0:03:02.2]} 7. d4 {[%clk 0:02:44.8]} 7... Nf6 {[%clk 0:03:02]} 8. Qd3 {[%clk
0:02:44.8]} 8... Bg4 {[%clk 0:02:55.2]} 9. c3 {[%clk 0:02:14.2]} 9... e6 {[%clk
0:02:54.1]} 10. Be2 {[%clk 0:02:09.1]} 10... Bd6 {[%clk 0:02:50.3]} 11. O-O
{[%clk 0:02:09.4]} 11... O-O {[%clk 0:02:49.5]} 12. Bg5 {[%clk 0:02:07.8]} 12...
Bf5 {[%clk 0:02:46.7]} 13. Qe3 {[%clk 0:02:02.6]} 13... Qc7 {[%clk 0:02:43.8]}
14. h3 {[%clk 0:01:52.1]} 14... Nd5 {[%clk 0:02:41]} 15. Qd2 {[%clk 0:01:51.2]}
15... Bf4 {[%clk 0:02:39]} 16. Bxf4 {[%clk 0:01:51.3]} 16... Nxf4 {[%clk
0:02:38.8]} 17. Ne5 {[%clk 0:01:51.4]} 17... Ng6 {[%clk 0:02:23]} 18. f4 {[%clk
0:01:46.8]} 18... Rad8 {[%clk 0:02:15.8]} 19. Qe3 {[%clk 0:01:40.9]} 19... Rfe8
{[%clk 0:02:04.7]} 20. g4 {[%clk 0:01:24.9]} 20... Bc2 {[%clk 0:02:04.7]} 21.
Rf2 {[%clk 0:01:17.8]} 21... f6 {[%clk 0:01:56]} 22. Nxg6 {[%clk 0:01:13.5]}
22... Bxg6 {[%clk 0:01:55.7]} 23. Bc4 {[%clk 0:01:14.2]} 23... Bf7 {[%clk
0:01:56.1]} 24. Re1 {[%clk 0:01:13.1]} 24... Re7 {[%clk 0:01:46.4]} 25. Qg3
{[%clk 0:01:06]} 25... c5 {[%clk 0:01:43.3]} 26. dxc5 {[%clk 0:00:55.1]} 26...
Qxc5 {[%clk 0:01:42.9]} 27. Bb3 {[%clk 0:00:55.8]} 27... Rd2 {[%clk 0:01:32.4]}
28. Qe3 {[%clk 0:00:55.7]} 28... Qxe3 {[%clk 0:01:23.1]} 29. Rxe3 {[%clk
0:00:56.6]} 29... Rxf2 {[%clk 0:01:20.1]} 30. Kxf2 {[%clk 0:00:57.5]} 30... Kf8
{[%clk 0:01:20.7]} 31. Rd3 {[%clk 0:00:55.3]} 31... Rc7 {[%clk 0:01:18.2]} 32.
Ke3 {[%clk 0:00:54.8]} 32... Ke7 {[%clk 0:01:18.3]} 33. Rd4 {[%clk 0:00:51.5]}
33... h5 {[%clk 0:01:13]} 34. Bd1 {[%clk 0:00:43.8]} 34... hxg4 {[%clk
0:01:12.6]} 35. hxg4 {[%clk 0:00:44.5]} 35... Rc5 {[%clk 0:01:08.7]} 36. Bf3
{[%clk 0:00:43.9]} 36... b6 {[%clk 0:01:02.6]} 37. a4 {[%clk 0:00:38.3]} 37...
e5 {[%clk 0:01:01.1]} 38. fxe5 {[%clk 0:00:37.3]} 38... fxe5 {[%clk 0:00:52.7]}
39. Rd2 {[%clk 0:00:31.5]} 39... Bb3 {[%clk 0:00:50]} 40. Bd1 {[%clk 0:00:23.3]}
40... Bxd1 {[%clk 0:00:50.1]} 41. Rxd1 {[%clk 0:00:24.2]} 41... Rc4 {[%clk
0:00:50.7]} 42. a5 {[%clk 0:00:21.1]} 42... Rxg4 {[%clk 0:00:50.1]} 43. axb6
{[%clk 0:00:21.4]} 43... axb6 {[%clk 0:00:51]} 44. Rd5 {[%clk 0:00:21.7]} 44...
Rg6 {[%clk 0:00:39]} 45. Rxe5+ {[%clk 0:00:16.6]} 45... Kd6 {[%clk 0:00:25.5]}
46. Re4 {[%clk 0:00:16.7]} 46... Rg2 {[%clk 0:00:24.3]} 47. b4 {[%clk
0:00:16.1]} 47... g5 {[%clk 0:00:21.1]} 48. Kf3 {[%clk 0:00:15.9]} 48... Rc2
{[%clk 0:00:19.5]} 49. Re3 {[%clk 0:00:16.2]} 49... Kd5 {[%clk 0:00:18.6]} 50.
Kg4 {[%clk 0:00:16.5]} 50... Kc4 {[%clk 0:00:18.3]} 51. Re6 {[%clk 0:00:16.5]}
51... b5 {[%clk 0:00:18.1]} 52. Rc6+ {[%clk 0:00:16.7]} 52... Kb3 {[%clk
0:00:15.5]} 53. Rc5 {[%clk 0:00:16.7]} 53... Rxc3 {[%clk 0:00:09]} 54. Rxb5
{[%clk 0:00:17]} 54... Rc4+ {[%clk 0:00:09.3]} 55. Kxg5 {[%clk 0:00:17.4]} 55...
Rxb4 {[%clk 0:00:10.2]} 56. Rxb4+ {[%clk 0:00:17.9]} 56... Kxb4 {[%clk
0:00:10.8]} 1/2-1/2